[Event "45th FIDE Womens Olympiad 2024"]
[Site "Budapest"]
[Date "2024.09.16"]
[Round "6.1"]
[White "Dronavalli, Harika"]
[Black "Mkrtchian, Lilit"]
[Result "1/2-1/2"]
[ECO "D55"]
[WhiteElo "2502"]
[BlackElo "2366"]
[Annotator "TA"]
[PlyCount "87"]
[EventDate "2024.09.05"]
[EventType "team-tourn"]
[EventCountry "HUN"]
[SourceTitle "playchess.com"]
[Source "ChessBase"]
[SourceQuality "1"]
[WhiteTeam "India"]
[BlackTeam "Armenia"]
[WhiteTeamCountry "IND"]
[BlackTeamCountry "ARM"]
[TimeControl "40/5400+30:1800+30"]

{[%evp 23,87,11,16,16,22,25,28,27,39,37,54,47,60,34,57,29,40,30,56,36,62,47,50,50,74,67,63,72,68,76,72,68,80,26,78,29,17,33,22,19,34,41,59,58,54,64,60,57,112,76,76,83,126,8,8,8,8,8,8,8,8,8,8,0,8,0]} 1. Nf3 {[%emt 0:00:45]} d5 {[%emt 0:00:19]} 2. d4 {[%emt 0:00:15]} Nf6 {[%emt 0:00:25]} 3. c4 {[%emt 0:00:08]} e6 {[%emt 0:00:18]} 4. Nc3 {[%emt 0:00:09]} Be7 {[%emt 0:01:09]} 5. Bg5 {[%emt 0:00:46]} h6 {[%emt 0:00:37]} 6. Bxf6 {[%emt 0:00:24]} Bxf6 {[%emt 0:00:06]} 7. e3 {[%emt 0:00:17]} O-O {[%emt 0:00:46]} 8. Rc1 {[%emt 0:00:28]} c6 {[%emt 0:04:04]} 9. Bd3 {[%emt 0:00:22]} Nd7 {[%emt 0:01:37]} 10. O-O {[%emt 0:02:23]} dxc4 {[%emt 0:09:43]} 11. Bxc4 {[%emt 0:00:15]} e5 {[%emt 0:00:09]} 12. Ne4 {[%emt 0:01:12]} exd4 {[%emt 0:04:47]} 13. Nxf6+ {[%emt 0:00:56]} Qxf6 {[%emt 0:02:25]} 14. Qxd4 {[%emt 0:00:05]} Qxd4 {[%emt 0:07:58]} 15. Nxd4 {[%emt 0:00:56] White has an edge.} Ne5 {[%emt 0:10:46]} 16. Be2 {[%emt 0:02:01]} Bd7 {[%emt 0:02:24]} 17. Rfd1 {[%emt 0:02:08]} Rfd8 {[%emt 0:07:34]} 18. f3 {[%emt 0:03:56]} Kf8 {[%emt 0:06:47]} 19. Kf2 {[%emt 0:02:15]} a5 {[%emt 0:06:11]} 20. h3 {[%emt 0:11:50]} Ng6 {[%emt 0:09:58]} 21. f4 {[%emt 0:05:58]} Rac8 {[%emt 0:02:18]} 22. Nb3 {[%emt 0:07:00]} b6 {[%emt 0:01:25]} 23. Nd2 {[%emt 0:00:25]} Be8 {[%emt 0:15:18]} 24. Nc4 {[%emt 0:08:51]} Rxd1 {[%emt 0:02:12]} 25. Rxd1 {[%emt 0:00:53]} Rb8 {[%emt 0:00:12]} 26. Bf3 {[%emt 0:05:12]} Ne7 {[%emt 0:03:10]} 27. Ne5 {[%emt 0:06:07]} a4 {[%emt 0:00:28]} 28. g4 {[%emt 0:04:23] White has more active pieces.} ({Better is} 28. Ke2 $16) 28... b5 {[%emt 0:00:42]} (28... f6 $11 {remains equal.} 29. Nd7+ Bxd7 30. Rxd7 Ke8) 29. Nd7+ {[%emt 0:07:45]} (29. Ke2 $16) 29... Bxd7 $11 {[%emt 0:00:03]} 30. Rxd7 {[%emt 0:00:03][%mdl 4096] Endgame. KRB-KRN} Ke8 {[%emt 0:00:16]} 31. Rc7 {[%emt 0:01:32]} Kd8 {[%emt 0:00:15]} 32. Ra7 {[%emt 0:00:09]} Rc8 {[%emt 0:00:51]} 33. g5 {[%emt 0:03:04]} hxg5 {[%emt 0:01:08]} 34. fxg5 {[%emt 0:00:28]} Rc7 {[%emt 0:00:04]} 35. Ra8+ {[%emt 0:00:54]} Rc8 {[%emt 0:00:23]} (35... Kd7 $14) 36. Rxc8+ $16 {[%emt 0:03:29]} Kxc8 {[%emt 0:00:01] KB-KN} 37. h4 {[%emt 0:00:04]} g6 {[%emt 0:00:17]} 38. h5 {[%emt 0:00:12]} (38. Kg3 $16) 38... gxh5 $11 {[%emt 0:00:09] The position is equal.} 39. Bxh5 {[%emt 0:00:28][%cal Of2f3]} Ng6 {[%emt 0:00:29]} 40. Kf3 {[%emt 0:02:36] [#] Threatens to win with Ke4.} Kd7 $1 {[%emt 0:00:49]} 41. Ke4 {[%emt 0:31:25] Hoping for Bxg6.} Ke6 $1 {[%emt 0:31:46]} 42. Bg4+ {[%emt 0:02:46]} Ke7 {[%emt 0:00:00]} 43. Bh5 {[%emt 0:00:00] Bxg6 is the strong threat.} Ke6 $1 {[%emt 0:00:00]} 44. Bg4+ {[%emt 0:00:00] Weighted Error Value: White=0.15 (very precise) /Black=0.11 (very precise) .  Mistake:       	White=3     	Black=2      Inaccurate:     	White=2     	Black=2      OK:         	White=14    	Black=4      Best:        	White=1     	Black=8      Strong:       	---       	Black=3} 1/2-1/2

[Event "45th FIDE Womens Olympiad 2024"]
[Site "Budapest"]
[Date "2024.09.16"]
[Round "6.1"]
[White "Mahi, R. Shah"]
[Black "Kaslan, Catherine"]
[Result "1/2-1/2"]
[ECO "E19"]
[WhiteElo "1602"]
[BlackElo "1902"]
[PlyCount "63"]
[EventDate "2024.09.05"]
[EventType "team-tourn"]
[EventCountry "HUN"]
[WhiteTeam "Tanzania"]
[BlackTeam "Suriname"]
[WhiteTeamCountry "TAN"]
[TimeControl "40/5400+30:1800+30"]

1. d4 Nf6 2. c4 e6 3. Nf3 b6 4. g3 Bb7 5. Bg2 Be7 6. O-O O-O 7. Nc3 Ne4 8. Qd3 Nxc3 9. Qxc3 d6 10. Re1 a5 11. Qd3 f5 12. Nd2 Bxg2 13. Kxg2 Nd7 14. b3 Qe8 15. Nf3 Qg6 16. Ng1 Nf6 17. Nh3 e5 18. dxe5 dxe5 19. Bg5 Rad8 20. Qc2 h6 21. Bxf6 Rxf6 22. Red1 Bd6 23. e3 Rdf8 24. f4 e4 25. Qc3 Qg4 26. Ng1 h5 27. Qe1 h4 28. Qe2 Qg6 29. Nh3 Kf7 30. Ng5+ Ke7 31. Qc2 Rh8 32. Rh1 1/2-1/2

[Event "45th FIDE Womens Olympiad 2024"]
[Site "Budapest"]
[Date "2024.09.16"]
[Round "6.2"]
[White "Mkrtchyan, Mariam"]
[Black "Vaishali, Rameshbabu"]
[Result "1/2-1/2"]
[ECO "E11"]
[WhiteElo "2328"]
[BlackElo "2498"]
[Annotator "TA"]
[PlyCount "99"]
[EventDate "2024.09.05"]
[EventType "team-tourn"]
[EventCountry "HUN"]
[SourceTitle "playchess.com"]
[Source "ChessBase"]
[SourceQuality "1"]
[WhiteTeam "Armenia"]
[BlackTeam "India"]
[WhiteTeamCountry "ARM"]
[BlackTeamCountry "IND"]
[TimeControl "40/5400+30:1800+30"]

{[%evp 12,99,22,33,22,-21,37,15,37,26,31,6,41,49,35,35,33,18,25,0,0,0,0,0,0,0,0,0,0,0,0,0,0,0,0,0,0,0,0,0,0,-8,0,0,0,0,0,0,0,-33,-33,-53,-41,-50,-41,-45,-39,-41,-39,-39,-39,-66,-13,-14,-8,-9,0,0,0,0,0,0,0,0,0,0,0,0,0,0,8,8,129,129,129,129,121,194,201,201]} 1. d4 {[%emt 0:00:03]} Nf6 {[%emt 0:00:17]} 2. c4 {[%emt 0:00:06]} e6 {[%emt 0:00:07]} 3. Nf3 {[%emt 0:00:06]} Bb4+ {[%emt 0:00:10]} 4. Bd2 {[%emt 0:00:16]} Qe7 {[%emt 0:00:09]} 5. g3 {[%emt 0:00:12]} Bxd2+ {[%emt 0:00:27]} 6. Qxd2 {[%emt 0:01:29]} Nc6 {[%emt 0:00:20]} 7. a3 {[%emt 0:09:26]} d5 {[%emt 0:07:21]} 8. b3 {[%emt 0:14:32]} e5 {[%emt 0:23:01]} (8... dxc4 $11 9. bxc4 O-O) 9. cxd5 $14 {[%emt 0:04:50]} Nxd5 {[%emt 0:06:12] The position is equal.} 10. dxe5 {[%emt 0:01:17]} Nb6 {[%emt 0:00:25]} 11. Qc3 {[%emt 0:02:53]} O-O {[%emt 0:02:59]} 12. Bg2 {[%emt 0:01:49]} Re8 {[%emt 0:01:21][%cal Oc8g4]} 13. O-O {[%emt 0:00:50]} Nxe5 {[%emt 0:02:08]} 14. Nbd2 {[%emt 0:00:18]} c6 {[%emt 0:04:59]} 15. e4 {[%emt 0:04:32]} Nxf3+ {[%emt 0:07:36]} 16. Nxf3 {[%emt 0:00:08]} Bg4 {[%emt 0:00:34]} 17. h3 {[%emt 0:07:45]} Bxf3 {[%emt 0:03:19]} 18. Bxf3 {[%emt 0:00:05]} Rad8 {[%emt 0:00:08]} 19. Rad1 {[%emt 0:09:07]} Qxa3 {[%emt 0:13:41]} 20. Rxd8 {[%emt 0:11:11]} Rxd8 {[%emt 0:00:02]} 21. Ra1 {[%emt 0:00:06]} Qe7 {[%emt 0:12:05]} 22. Rxa7 {[%emt 0:00:19]} Nc8 {[%emt 0:00:51]} 23. Ra8 {[%emt 0:01:25]} Nd6 {[%emt 0:00:17][%csl LRa8,LRe4]} 24. Qa5 {[%emt 0:04:54]} Rxa8 {[%emt 0:01:24]} 25. Qxa8+ {[%emt 0:00:04]} Qf8 {[%emt 0:00:02]} 26. Qxf8+ {[%emt 0:03:35]} Kxf8 $11 {[%emt 0:00:03][%mdl 4096] Endgame. KB-KN} 27. e5 {[%emt 0:02:11]} Nb5 {[%emt 0:00:26]} 28. Be4 {[%emt 0:01:56]} Nd4 {[%emt 0:06:57]} 29. b4 {[%emt 0:04:08]} Ne2+ {[%emt 0:00:02]} 30. Kf1 {[%emt 0:00:51]} Nc3 {[%emt 0:00:02]} 31. Bg2 {[%emt 0:04:59]} (31. Bxh7 $2 {is the wrong capture.} g6 32. e6 Ke7 $19) 31... Ke7 {[%emt 0:02:36]} 32. Ke1 {[%emt 0:00:26]} Ke6 {[%emt 0:00:25]} 33. f4 {[%emt 0:00:04]} Nd5 {[%emt 0:00:59]} 34. b5 $1 {[%emt 0:00:03]} cxb5 {[%emt 0:01:09]} 35. Kd2 {[%emt 0:00:06]} b4 {[%emt 0:02:16]} 36. Kd3 {[%emt 0:05:03]} b5 {[%emt 0:00:49]} (36... f6 $15 37. Kd4 fxe5+ 38. fxe5 Ne7 39. Bxb7 Nf5+ 40. Ke4 Nxg3+ 41. Kf3 Nh5) 37. Kd4 {[%emt 0:00:20]} Nc3 {[%emt 0:00:20]} 38. Bf1 {[%emt 0:00:07] Against Ne2+} h5 {[%emt 0:01:40][%cal Oh5h4]} 39. Bd3 {[%emt 0:01:06]} g6 {[%emt 0:00:41]} 40. g4 {[%emt 0:07:00]} h4 {[%emt 0:01:04]} 41. f5+ {[%emt 0:01:18]} gxf5 {[%emt 0:01:57]} 42. gxf5+ {[%emt 0:00:11]} Ke7 {[%emt 0:00:36]} 43. Kc5 {[%emt 0:01:53]} b3 {[%emt 0:13:49] [#] aiming for ...b2.} 44. Kb4 {[%emt 0:00:21]} Nd5+ {[%emt 0:01:40]} 45. Kxb3 {[%emt 0:00:25]} Nf4 {[%emt 0:00:13]} 46. Bf1 {[%emt 0:00:43][%cal Ob3b4] White wants to play Kb4!} f6 {[%emt 0:00:15]} (46... Nd5 $11 {keeps the balance.}) 47. e6 $16 {[%emt 0:05:08]} Nxe6 {[%emt 0:00:52]} 48. fxe6 {[%emt 0:00:04]} Kxe6 {[%emt 0:00:04]} 49. Bxb5 {[%emt 0:00:13]} Kf7 {[%emt 0:00:05]} 50. Kc3 {[%emt 0:00:11] Weighted Error Value: White=0.04 (flawless) /Black=0.11 (very precise) .  Mistake:       	---       	Black=3      Inaccurate:     	White=3     	Black=1      OK:         	White=25    	Black=19     Best:        	White=4     	Black=2      Strong:       	White=1     	---} 1/2-1/2

[Event "45th FIDE Womens Olympiad 2024"]
[Site "Budapest"]
[Date "2024.09.16"]
[Round "6.2"]
[White "Kaslan, Victoria"]
[Black "Anahi, Rishit Shah"]
[Result "1-0"]
[ECO "C45"]
[WhiteElo "1726"]
[BlackElo "1513"]
[PlyCount "81"]
[EventDate "2024.09.05"]
[EventType "team-tourn"]
[EventCountry "HUN"]
[WhiteTeam "Suriname"]
[BlackTeam "Tanzania"]
[BlackTeamCountry "TAN"]
[TimeControl "40/5400+30:1800+30"]

1. e4 e5 2. Nf3 Nc6 3. d4 exd4 4. Nxd4 Nf6 5. Nxc6 bxc6 6. Bd3 Bc5 7. O-O O-O 8. e5 Nd5 9. Be4 Bb7 10. Qh5 g6 11. Qh6 Re8 12. Bxd5 cxd5 13. Bg5 Be7 14. Bxe7 Rxe7 15. f4 Qf8 16. Qh4 Qe8 17. Nc3 Bc6 18. Rad1 Re6 19. Nxd5 Bxd5 20. Rxd5 c6 21. Rd2 a6 22. Rfd1 Rd8 23. Rd3 Qf8 24. Rxd7 Rxd7 25. Rxd7 Re8 26. Rd6 c5 27. Qf2 Rb8 28. b3 Rc8 29. Qd2 Rb8 30. Rxa6 c4 31. Rd6 Qc8 32. b4 Kg7 33. a4 Qc7 34. a5 c3 35. Qd4 Ra8 36. Rd7 Qc6 37. e6+ Kh6 38. Rxf7 Qxe6 39. Qg7+ Kh5 40. Qxh7+ Kg4 41. Qh3# 1-0

[Event "45th FIDE Womens Olympiad 2024"]
[Site "Budapest"]
[Date "2024.09.16"]
[Round "6.3"]
[White "Divya, Deshmukh"]
[Black "Danielian, Elina"]
[Result "1-0"]
[ECO "C02"]
[WhiteElo "2483"]
[BlackElo "2393"]
[Annotator "TA"]
[PlyCount "79"]
[EventDate "2024.09.05"]
[EventType "team-tourn"]
[EventCountry "HUN"]
[SourceTitle "playchess.com"]
[Source "ChessBase"]
[SourceQuality "1"]
[WhiteTeam "India"]
[BlackTeam "Armenia"]
[WhiteTeamCountry "IND"]
[BlackTeamCountry "ARM"]
[TimeControl "40/5400+30:1800+30"]

{[%evp 12,79,32,-25,-25,-25,-20,-21,0,-11,-20,-16,0,0,0,-20,0,0,-7,-9,155,40,128,113,191,191,296,196,191,187,173,145,168,152,170,138,156,150,224,216,291,288,377,374,377,356,422,394,461,460,621,611,814,750,822,762,1036,1014,983,749,743,747,750,747,740,740,719,718,1378,1319]} 1. e4 {[%emt 0:00:04]} e6 {[%emt 0:00:17]} 2. d4 {[%emt 0:00:07]} d5 {[%emt 0:00:04]} 3. e5 {[%emt 0:00:03]} c5 {[%emt 0:00:04]} 4. c3 {[%emt 0:00:04]} Nc6 {[%emt 0:00:06]} 5. Nf3 {[%emt 0:00:04]} Bd7 {[%emt 0:00:04]} 6. Bd3 {[%emt 0:00:12]} Qb6 {[%emt 0:04:41]} 7. O-O {[%emt 0:00:15]} (7. dxc5 $1 $14 Bxc5 8. O-O) 7... cxd4 $11 {[%emt 0:02:47]} 8. Re1 {[%emt 0:00:50]} Rc8 {[%emt 0:02:53]} 9. Nbd2 {[%emt 0:00:20]} Nge7 {[%emt 0:15:59] The position is equal.} 10. Nb3 {[%emt 0:06:35]} dxc3 {[%emt 0:12:03]} 11. bxc3 {[%emt 0:00:46]} Na5 {[%emt 0:01:40]} 12. Rb1 {[%emt 0:14:47]} Nxb3 {[%emt 0:11:58]} 13. Rxb3 {[%emt 0:00:21]} Qc7 {[%emt 0:00:12]} 14. Qe2 {[%emt 0:21:09]} Nc6 {[%emt 0:19:47]} 15. Ng5 $1 {[%emt 0:01:36][%cal Oe2h5] Black must now prevent Qh5!} Na5 $2 {[%emt 0:06:26] [#]} ({Black should try} 15... Be7 $11) 16. Rb1 {[%emt 0:22:34]} (16. Qh5 $1 $16 Nxb3 17. Qxf7+ Kd8 18. axb3) 16... Bc6 {[%emt 0:03:48]} (16... h5 $14) 17. Nxh7 $16 {[%emt 0:02:09] White has more active pieces. The black rooks are passive.} Be7 {[%emt 0:00:11]} (17... Qd8 $16 18. Qg4 Nc4) 18. Qg4 $18 {[%emt 0:01:29]} g6 {[%emt 0:08:30]} (18... Rxh7 $142 19. Bxh7 Bf8) 19. Ng5 {[%emt 0:02:57]} Bxg5 {[%emt 0:03:25]} 20. Bxg5 {[%emt 0:00:13][%cal Od3g6] Strongly threatening Bxg6!} Kd7 {[%emt 0:03:37][%cal Be8d7,Bd7c8,Bc8b8][%mdl 32] Black is weak on the dark squares} 21. c4 {[%emt 0:03:21]} dxc4 {[%emt 0:01:23] [#]} 22. Bxg6 {[%emt 0:04:22][%mdl 512]} Rcf8 {[%emt 0:00:41]} 23. Be4 $36 {[%emt 0:01:40][%mdl 2048] Keeping Black busy. This pair of bishops is nice.} Kc8 {[%emt 0:00:20] Threatens to win with ...f5.} 24. Bf6 {[%emt 0:00:11]} Rhg8 {[%emt 0:00:31]} (24... Rfg8 $16 25. Qf3 Rh6) 25. Qf3 {[%emt 0:00:51]} Kb8 {[%emt 0:00:21]} 26. h4 {[%emt 0:01:49][%cal Bh2h4,Bh4h5,Bh5h6,Bh6h7][%mdl 32]} Rc8 {[%emt 0:00:34]} 27. h5 {[%emt 0:00:51]} Bxe4 {[%emt 0:00:45]} 28. Rxe4 {[%emt 0:00:10]} c3 {[%emt 0:00:25][%cal Bc4c3,Bc3c2][%mdl 32]} 29. h6 {[%emt 0:00:25]} c2 {[%emt 0:00:22]} 30. Rc1 {[%emt 0:00:01] White is clearly winning.} Qd7 {[%emt 0:00:33]} 31. h7 {[%emt 0:00:16]} Rh8 {[%emt 0:00:58]} 32. Bxh8 {[%emt 0:00:09]} Rxh8 {[%emt 0:00:11]} 33. Qg4 {[%emt 0:00:58] aiming for Qg8+.} Qd2 {[%emt 0:00:41]} 34. Qg8+ {[%emt 0:00:33]} Kc7 {[%emt 0:00:29]} 35. Ree1 {[%emt 0:00:34]} Qd8 {[%emt 0:00:40]} 36. Rxc2+ {[%emt 0:00:10]} Nc6 {[%emt 0:00:04]} 37. Qxf7+ {[%emt 0:00:06]} Qd7 {[%emt 0:00:20]} 38. Qxd7+ {[%emt 0:01:17]} Kxd7 {[%emt 0:00:01]} 39. Rd1+ {[%emt 0:00:04]} Ke7 {[%emt 0:01:10]} 40. Rb1 {[%emt 0:00:07] Weighted Error Value: White=0.19 (very precise) /Black=0.46.  Mistake:       	White=1     	Black=5      Inaccurate:     	White=1     	Black=4      OK:         	White=10    	Black=6      Best:        	White=1     	Black=2      Strong:       	White=1     	---        Brilliant:      	White=1     	---} 1-0

[Event "45th FIDE Womens Olympiad 2024"]
[Site "Budapest"]
[Date "2024.09.16"]
[Round "6.3"]
[White "Samson, Bertha"]
[Black "Kaslan, Alexandra"]
[Result "0-1"]
[ECO "C01"]
[WhiteElo "1459"]
[BlackElo "1675"]
[PlyCount "72"]
[EventDate "2024.09.05"]
[EventType "team-tourn"]
[EventCountry "HUN"]
[WhiteTeam "Tanzania"]
[BlackTeam "Suriname"]
[WhiteTeamCountry "TAN"]
[TimeControl "40/5400+30:1800+30"]

1. e4 e6 2. d4 d5 3. exd5 exd5 4. Nf3 Bd6 5. Bd3 Nf6 6. O-O O-O 7. Bg5 Be6 8. c3 Nbd7 9. Qc2 h6 10. Bh4 c6 11. Nbd2 Qc7 12. h3 Nh5 13. Rfe1 Nf4 14. Re3 Nxd3 15. Qxd3 Bf4 16. Re2 Qb6 17. Qc2 Rfe8 18. Rae1 Qc7 19. a3 Rac8 20. b4 b6 21. Nb3 Bd6 22. Re3 c5 23. dxc5 bxc5 24. b5 Nb6 25. R3e2 Bd7 26. Nfd2 Rxe2 27. Rxe2 Bxb5 28. Re1 Re8 29. Rxe8+ Bxe8 30. c4 dxc4 31. Nxc4 Nxc4 32. Qxc4 Qb6 33. Nd2 Qa5 34. Qd3 Qc7 35. f3 Qd7 36. Bf2 Bh2+ {0-} 0-1

[Event "45th FIDE Womens Olympiad 2024"]
[Site "Budapest"]
[Date "2024.09.16"]
[Round "6.4"]
[White "Sargsyan, Anna M."]
[Black "Tania, Sachdev"]
[Result "1/2-1/2"]
[ECO "C54"]
[WhiteElo "2364"]
[BlackElo "2386"]
[Annotator "TA"]
[PlyCount "121"]
[EventDate "2024.09.05"]
[EventType "team-tourn"]
[EventCountry "HUN"]
[SourceTitle "playchess.com"]
[Source "ChessBase"]
[SourceQuality "1"]
[WhiteTeam "Armenia"]
[BlackTeam "India"]
[WhiteTeamCountry "ARM"]
[BlackTeamCountry "IND"]
[TimeControl "40/5400+30:1800+30"]

{[%evp 45,121,-47,-27,-62,0,-31,-25,-26,-22,-31,0,-50,-48,-130,-131,-132,-93,-90,-53,-112,-112,-119,-118,-91,-93,-127,-111,-118,-115,-172,-34,-38,-35,-36,-50,-70,-74,-156,-154,-181,-179,-293,-296,-319,-116,-120,-129,-120,-89,-120,-33,-33,-8,-8,-8,-8,-8,-8,-18,-81,-88,-89,0,-95,0,-96,-25,-25,-8,-8,-8,-8,-8,-8,-8,-8,-8,-8]} 1. e4 {[%emt 0:00:04]} e5 {[%emt 0:00:04]} 2. Nf3 {[%emt 0:00:05]} Nc6 {[%emt 0:00:05]} 3. Bc4 {[%emt 0:00:05]} Nf6 {[%emt 0:00:07]} 4. d3 {[%emt 0:00:06]} Bc5 {[%emt 0:00:11]} 5. c3 {[%emt 0:00:26]} d6 {[%emt 0:00:21]} 6. O-O {[%emt 0:00:27]} a5 {[%emt 0:00:57]} 7. Re1 {[%emt 0:00:30]} Ba7 {[%emt 0:02:34]} 8. Bb3 {[%emt 0:02:09]} h6 {[%emt 0:04:08]} 9. Be3 {[%emt 0:08:18]} O-O {[%emt 0:05:11]} 10. Bxa7 {[%emt 0:00:44]} Rxa7 {[%emt 0:00:14]} 11. h3 {[%emt 0:00:21]} Nh5 {[%emt 0:07:59]} 12. Nxe5 {[%emt 0:07:23]} Nxe5 {[%emt 0:01:11]} 13. Qxh5 {[%emt 0:02:53]} Nxd3 {[%emt 0:00:47]} 14. Re3 {[%emt 0:00:51]} Nf4 {[%emt 0:03:29]} 15. Qf3 {[%emt 0:03:54]} Qg5 {[%emt 0:03:14]} 16. Kh1 {[%emt 0:00:40]} a4 {[%emt 0:14:49]} 17. Bc2 {[%emt 0:06:03]} Bd7 {[%emt 0:07:08]} 18. Nd2 {[%emt 0:03:36]} Raa8 {[%emt 0:03:20]} 19. Rae1 {[%emt 0:01:13]} Bc6 {[%emt 0:07:32]} 20. Qg4 {[%emt 0:20:00]} Qxg4 {[%emt 0:07:00]} 21. hxg4 {[%emt 0:00:07]} Rfe8 {[%emt 0:00:58]} 22. g3 {[%emt 0:04:58]} Ne6 {[%emt 0:00:39]} 23. Kg1 {[%emt 0:04:36]} Nc5 {[%emt 0:03:25]} 24. Nf3 {[%emt 0:03:08]} Ne6 {[%emt 0:10:10]} ({Better is} 24... Bd7 $15 25. g5 hxg5 26. Nxg5 g6) 25. Nh4 {[%emt 0:07:12]} g6 {[%emt 0:04:12]} 26. f4 {[%emt 0:00:41]} Kg7 {[%emt 0:01:18]} 27. e5 {[%emt 0:06:06]} dxe5 {[%emt 0:01:45]} 28. f5 {[%emt 0:00:05]} (28. Rxe5 $11 Rad8 29. Be4 (29. Nxg6 Rd2 $17) 29... Bxe4 30. R5xe4) 28... Nf8 $15 {[%emt 0:02:19]} 29. Rxe5 {[%emt 0:03:26]} (29. fxg6 $15 fxg6 30. Rxe5) 29... Rxe5 $17 {[%emt 0:03:11]} 30. Rxe5 {[%emt 0:00:06]} Kf6 {[%emt 0:01:41]} 31. Re2 {[%emt 0:02:40]} Re8 {[%emt 0:01:36]} 32. Rd2 {[%emt 0:00:45] [#]} ({White should play} 32. Rxe8 $15 Bxe8 33. Kg2) 32... a3 $1 $17 {[%emt 0:02:28]} 33. bxa3 {[%emt 0:01:41]} Re3 {[%emt 0:01:15]} 34. fxg6 {[%emt 0:06:08]} fxg6 {[%emt 0:00:04]} (34... Rxg3+ 35. Kh2 Rxg4 (35... Rxc3 $2 36. Rf2+ $18) 36. Rf2+ Kg7 37. Kh3 (37. Rxf7+ Kg8 $14) 37... Rxh4+ 38. Kxh4 fxg6 39. Kg3 $18) 35. Kh2 {[%emt 0:00:22]} Rxc3 {[%emt 0:01:31]} 36. Rf2+ {[%emt 0:00:05] [#]} Kg5 $1 {[%emt 0:00:42]} 37. Kh3 {[%emt 0:04:13]} (37. a4 $17 {was necessary.}) 37... h5 {[%emt 0:00:01]} (37... Ne6 $19 {...Nd4 is the strong threat.} 38. Bxg6 Nd4) 38. gxh5 $15 {[%emt 0:00:29]} gxh5 {[%emt 0:00:05]} 39. Bd1 {[%emt 0:00:51]} Bd7+ {[%emt 0:00:23]} 40. Kh2 {[%emt 0:00:05]} Ng6 {[%emt 0:01:22]} 41. Rf7 {[%emt 0:04:01]} (41. Nf3+ $142 Kh6 42. Rc2 Rxa3 43. Rxc7) 41... Ne5 $17 {[%emt 0:06:23]} 42. Nf3+ {[%emt 0:10:15]} Nxf3+ {[%emt 0:06:23]} 43. Bxf3 {[%emt 0:02:05]} (43. Rxf3 $142 Rc1 44. Rd3) 43... Be6 $19 {[%emt 0:00:44]} ({And not} 43... Rxa3 44. Rxd7 Rxf3 45. Rxc7 $11) 44. Rf8 {[%emt 0:00:23]} Rxa3 $2 {[%emt 0:04:56]} (44... b5 $19 {has better winning chances.} 45. Bg2 Rxa3 (45... Bxa2 $2 46. Re8 $19)) 45. Bxb7 $17 {[%emt 0:01:31]} Rxa2+ {[%emt 0:00:10]} ({Don't play} 45... Bxa2 46. Kg2 $15) 46. Kg1 {[%emt 0:00:09]} c5 {[%emt 0:06:17]} 47. Rf2 {[%emt 0:04:21]} Rxf2 {[%emt 0:02:32]} ({Black should try} 47... Ra7 $17 48. Rb2 c4 49. Rb5+ Kg4) 48. Kxf2 $15 {[%emt 0:00:12]} c4 {[%emt 0:02:09]} 49. Ke3 {[%emt 0:01:20]} Bf5 {[%emt 0:03:12]} 50. Bf3 {[%emt 0:00:33]} c3 {[%emt 0:00:27]} 51. Be2 {[%emt 0:00:12]} Be4 {[%emt 0:01:00]} 52. Bb5 {[%emt 0:01:31]} Bg6 {[%emt 0:01:04]} 53. Be2 {[%emt 0:01:09]} Be4 {[%emt 0:00:11]} 54. Bb5 $1 {[%emt 0:00:05]} Bf5 {[%emt 0:01:01]} 55. Be2 {[%emt 0:00:30]} Bg4 {[%emt 0:00:04]} (55... Kg6 $17) 56. Bb5 $11 {[%emt 0:00:19]} Bd1 {[%emt 0:00:22]} (56... c2 $5 57. Kd2 $8 Bf5 $11) 57. Kd3 {[%emt 0:01:33]} Kg4 {[%emt 0:00:44]} (57... c2 $5 58. Kd2 $8 Kg4 $11) 58. Be8 $1 {[%emt 0:00:06]} Kxg3 {[%emt 0:00:48]} (58... c2 $5 59. Kd2 $8 Kg5 $11 (59... Kxg3 60. Bxh5 Bxh5 61. Kxc2 $11)) 59. Bxh5 $1 {[%emt 0:00:05]} c2 {[%emt 0:00:06]} 60. Kd2 $1 {[%emt 0:00:04]} Bxh5 {[%emt 0:00:05]} 61. Kxc2 {[%emt 0:00:04]} 1/2-1/2